fUSD/lending_fUSD_20260410
["ID","MTS","AMOUNT","RATE_DAILY","PERIOD"]
[420212847,1775785856191,-151.0,0.000159,2]
[420212848,1775785856216,-193.774017,0.000159,2]
[420212849,1775785856226,-353.602754,0.000159,2]
[420212850,1775785856237,-151.0,0.000159,2]
[420212851,1775785856258,-193.774017,0.000159,2]
[420212852,1775785856268,-353.602754,0.000159,2]
[420212853,1775785856284,-277.490192,0.000159,2]
[420212854,1775785856309,-211.38382737,0.000159,2]
[420212855,1775785856319,-151.0,0.000159,2]
[420212856,1775785856331,-151.0,0.000159,2]
[420212857,1775785856345,-336.812757,0.000159,2]
[420212858,1775785856357,-208.673493,0.000159,2]
[420212859,1775785856367,-336.812757,0.000159,2]
[420212860,1775785856380,-336.812757,0.000159,2]
[420212861,1775785856400,-151.843378,0.000159,2]
[420212862,1775785856410,-336.812757,0.000159,2]
[420212863,1775785856423,-151.843378,0.000159,2]
[420212864,1775785856441,-151.843378,0.000159,2]
[420212865,1775785856450,-151.843378,0.000159,2]
[420212866,1775785856459,-201.96924575,0.000159,2]
[420212867,1775785856476,-8831.67394921,0.000159,2]
[420212868,1775785856488,-151.0,0.000159,2]
[420212869,1775785856498,-151.856264,0.000159,2]
[420212870,1775785856507,-151.0,0.000159,2]
[420212871,1775785856526,-151.0,0.000159,2]
[420212872,1775785856537,-151.0,0.000159,2]
[420212873,1775785856548,-151.0,0.000159,2]
[420212874,1775785856578,-264.9205,0.000159,2]
[420212875,1775785856589,-197.238714,0.000159,2]
[420212876,1775785856620,-264.9205,0.000159,2]
[420212877,1775785856631,-197.238714,0.000159,2]
[420212878,1775785856653,-264.9205,0.000159,2]
[420212879,1775785856667,-197.238714,0.000159,2]
[420212880,1775785856679,-151.0,0.000159,2]
[420212881,1775785856702,-264.9205,0.000159,2]
[420212882,1775785856712,-151.0,0.000159,2]
[420212883,1775785856722,-197.238714,0.000159,2]
[420212884,1775785856733,-151.0,0.000159,2]
[420212885,1775785856774,-3023.04366244,0.000159,2]
[420212886,1775785856784,-1585.03044496,0.000159,2]
[420212887,1775785856796,-4500.0,0.00015911,2]
[420212888,1775785856814,-152.0,0.00015922,5]
[420212889,1775785856823,-268.347184,0.00015922,2]
[420212890,1775785856833,-268.347184,0.00015922,2]
[420212891,1775785856847,-268.347184,0.00015922,2]
[420212892,1775785856876,-268.347184,0.00015922,2]
[420212893,1775785856886,-1000.0,0.00015922,2]
[420212894,1775785856904,-542.65787179,0.00015927,2]
[420212895,1775785856920,-1000.0,0.0001593,2]
[420212896,1775785856930,-1000.0,0.00015934,2]
[420212897,1775785856940,-168.0,0.00015936,2]
[420212898,1775785856963,-1000.0,0.00015949,2]
[420212899,1775785856972,-1000.0,0.00015955,2]
[420212900,1775785856982,-1338.89653537,0.00015956,2]
[420212901,1775785856993,-150.0,0.00015963,2]
[420212902,1775785857007,-150.0,0.00015969,2]
[420212903,1775785857016,-3269.0,0.00015973,2]
[420212904,1775785857026,-216.0,0.00015973,2]
[420212905,1775785857038,-9520.0,0.00015973,2]
[420212906,1775785857053,-22021.0,0.00015973,2]
[420212907,1775785857062,-500.57038075,0.00015973,2]
[420212908,1775785857071,-502.07843854,0.00015973,2]
[420212909,1775785857082,-474.76743542,0.00015973,2]
[420212910,1775785857093,-151.0,0.00015973,2]
[420212911,1775785857102,-151.0,0.00015973,2]
[420212912,1775785857115,-374.10266,0.00015973,2]
[420212913,1775785857126,-151.0,0.00015973,2]
[420212914,1775785857136,-165.844819,0.00015973,2]
[420212915,1775785857146,-165.844819,0.00015973,2]
[420212916,1775785857157,-374.10266,0.00015973,2]
[420212917,1775785857166,-165.844819,0.00015973,2]
[420212918,1775785857182,-374.10266,0.00015973,2]
[420212919,1775785857195,-165.844819,0.00015973,2]
[420212920,1775785857424,-374.10266,0.00015973,2]
[420212921,1775785857435,-702.18916,0.00015973,2]
[420212922,1775785857445,-164.002776,0.00015973,2]
[420212923,1775785857476,-435.650314,0.00015973,2]
[420212924,1775785857486,-164.002776,0.00015973,2]
[420212925,1775785857496,-435.650314,0.00015973,2]
[420212926,1775785857518,-164.002776,0.00015973,2]
[420212927,1775785857532,-435.650314,0.00015973,2]
[420212928,1775785857541,-164.002776,0.00015973,2]
[420212929,1775785857572,-151.0,0.00015973,2]
[420212930,1775785857584,-151.0,0.00015973,2]
[420212931,1775785857599,-435.650314,0.00015973,2]
[420212932,1775785857621,-151.0,0.00015973,2]
[420212933,1775785857634,-151.0,0.00015973,2]
[420212934,1775785857648,-151.0,0.00015973,2]
[420212935,1775785857676,-151.0,0.00015973,2]
[420212936,1775785857695,-162.368869,0.00015973,2]
[420212937,1775785857710,-151.0,0.00015973,2]
[420212938,1775785857721,-162.368869,0.00015973,2]
[420212939,1775785857747,-151.0,0.00015973,2]
[420212940,1775785857757,-151.0,0.00015973,2]
[420212941,1775785857768,-151.0,0.00015973,2]
[420212942,1775785857784,-151.0,0.00015973,2]
[420212943,1775785857794,-162.368869,0.00015973,2]
[420212944,1775785857808,-151.0,0.00015973,2]
[420212945,1775785857819,-151.0,0.00015973,2]
[420212946,1775785857835,-162.368869,0.00015973,2]
[420212947,1775785857846,-164.442272,0.00015973,2]
[420212948,1775785857856,-151.0,0.00015973,2]
[420212949,1775785857867,-151.0,0.00015973,2]
[420212950,1775785857883,-151.0,0.00015973,2]
[420212951,1775785857896,-164.442272,0.00015973,2]
[420212952,1775785857906,-151.0,0.00015973,2]
[420212953,1775785857919,-164.442272,0.00015973,2]
[420212954,1775785857940,-183.82193,0.00015973,2]
[420212955,1775785857950,-164.442272,0.00015973,2]
[420212956,1775785857970,-151.0,0.00015973,2]
[420212957,1775785857983,-183.82193,0.00015973,2]
[420212958,1775785857995,-151.0,0.00015973,2]
[420212959,1775785858014,-183.82193,0.00015973,2]
[420212960,1775785858028,-151.0,0.00015973,2]
[420212961,1775785858051,-183.82193,0.00015973,2]
[420212962,1775785858080,-151.0,0.00015973,2]
[420212963,1775785858106,-1000.0,0.00015977,2]
[420212964,1775785858119,-5800.0,0.00015982,2]
[420212965,1775785858128,-601.0,0.00015983,2]
[420212966,1775785858140,-154.17906259,0.00015984,2]
[420212967,1775785858153,-250.40222022,0.00015984,2]
[420212968,1775785858163,-297.36926372,0.0001599,2]
[420212969,1775785858173,-151.0,0.0001599,2]
[420212970,1775785858184,-168.85582104,0.0001599,2]
[420212971,1775785858198,-168.85582104,0.0001599,2]
[420212972,1775785858214,-264.9205,0.0001599,2]
[420212973,1775785858224,-197.238714,0.0001599,2]
[420212974,1775785858237,-264.9205,0.0001599,2]
[420212975,1775785858248,-197.238714,0.0001599,2]
[420212976,1775785858257,-264.9205,0.0001599,2]
[420212977,1775785858268,-151.0,0.0001599,2]
[420212978,1775785858281,-197.238714,0.0001599,2]
[420212979,1775785858294,-264.9205,0.0001599,2]
[420212980,1775785858305,-151.0,0.0001599,2]
[420212981,1775785858314,-197.238714,0.0001599,2]
[420212982,1775785858332,-151.0,0.0001599,2]
[420212983,1775785858342,-5800.0,0.0001599,2]
[420212984,1775785858351,-303.70194317,0.00015999,2]
[420212985,1775785858370,-670.13071491,0.00015999,2]
[420212986,1775785858380,-300.0,0.00015999,2]
[420212987,1775785858394,-666.0,0.00015999,2]
[420212988,1775785858429,-500.0,0.00015999,2]
[420212989,1775785858447,-500.0,0.00015999,3]
[420212990,1775785858467,-500.0,0.00015999,4]
[420212991,1775785858480,-500.0,0.00015999,5]
[420212992,1775785858504,-500.0,0.00015999,6]
[420212993,1775785858514,-500.0,0.00015999,7]
[420212994,1775785858527,-500.0,0.00015999,8]
[420212995,1775785858542,-500.0,0.00015999,9]
[420212996,1775785858552,-500.0,0.00015999,2]
[420212997,1775785858563,-500.45103551,0.00015999,2]
[420212998,1775785858582,-174.16436197,0.00015999,7]
[420212999,1775785858595,-500.0,0.00015999,2]
[420213000,1775785858610,-590.92044513,0.00015999,2]
[420213001,1775785858643,-151.0,0.00015999,2]
[420213002,1775785858660,-151.0,0.00015999,2]
[420213003,1775785858675,-151.0,0.00015999,2]
[420213004,1775785858686,-151.0,0.00015999,2]
[420213005,1775785858701,-151.0,0.00015999,2]
[420213006,1775785858716,-151.0,0.00015999,2]
[420213007,1775785858729,-151.0,0.00015999,2]
[420213008,1775785858749,-151.0,0.00015999,2]
[420213009,1775785858765,-5800.0,0.00015999,2]
[420213010,1775785858796,-500.0,0.00015999,2]
[420213011,1775785858822,-500.0,0.00015999,2]
[420213012,1775785858831,-500.0,0.00015999,2]
[420213013,1775785858841,-180.01684507,0.00015999,2]
[420213014,1775785858857,-500.0,0.00015999,2]
[420213015,1775785858872,-500.0,0.00015999,2]
[420213016,1775785858882,-500.0,0.00015999,2]
[420213017,1775785858891,-500.0,0.00015999,2]
[420213018,1775785858901,-500.0,0.00015999,2]
[420213019,1775785858917,-500.0,0.00015999,2]
[420213020,1775785858926,-500.0,0.00015999,2]
[420213021,1775785858937,-500.0,0.00015999,2]
[420213022,1775785858950,-500.0,0.00015999,2]
[420213023,1775785858972,-500.0,0.00015999,2]
[420213024,1775785858982,-500.0,0.00015999,2]
[420213025,1775785859014,-500.0,0.00015999,2]
[420213026,1775785859044,-380.6816339,0.00015999,2]
[420213027,1775785859089,-151.0,0.00015999,2]
[420213028,1775785859157,-151.0,0.00015999,2]
[420213029,1775785859183,-151.0,0.00015999,2]
[420213030,1775785859206,-151.0,0.00015999,2]
[420213031,1775785859230,-153.599312,0.00015999,2]
[420213032,1775785859239,-153.599312,0.00015999,2]
[420213033,1775785859263,-153.599312,0.00015999,2]
[420213034,1775785859274,-153.599312,0.00015999,2]
[420213035,1775785859287,-193.774017,0.00015999,2]
[420213036,1775785859306,-353.602754,0.00015999,2]
[420213037,1775785859316,-151.0,0.00015999,2]
[420213038,1775785859332,-193.774017,0.00015999,2]
[420213039,1775785859344,-353.602754,0.00015999,2]
[420213040,1775785859359,-151.0,0.00015999,2]
[420213041,1775785859368,-151.0,0.00015999,2]
[420213042,1775785859380,-193.774017,0.00015999,2]
[420213043,1775785859390,-353.602754,0.00015999,2]
[420213044,1775785859404,-151.0,0.00015999,2]
[420213045,1775785859413,-193.774017,0.00015999,2]
[420213046,1775785859425,-353.602754,0.00015999,2]
[420213047,1775785859435,-174.844153,0.00015999,2]
[420213048,1775785859445,-151.0,0.00015999,2]
[420213049,1775785859457,-336.812757,0.00015999,2]
[420213050,1775785859467,-336.812757,0.00015999,2]
[420213051,1775785859477,-336.812757,0.00015999,2]
[420213052,1775785859486,-151.843378,0.00015999,2]
[420213053,1775785859499,-336.812757,0.00015999,2]
[420213054,1775785859512,-151.843378,0.00015999,2]
[420213055,1775785859523,-151.843378,0.00015999,2]
[420213056,1775785859532,-151.843378,0.00015999,2]
[420213057,1775785859542,-151.0,0.00015999,2]
[420213058,1775785859559,-151.0,0.00015999,2]
[420213059,1775785859571,-151.0,0.00015999,2]
[420213060,1775785859580,-151.0,0.00015999,2]
[420213061,1775785859594,-500.0,0.00015999,2]
[420213062,1775785859606,-261.27692939,0.00015999,2]
[420213063,1775785859615,-191.09650166,0.00015999,2]
[420213064,1775785859625,-500.0,0.00015999,2]
[420213065,1775785859648,-258.3955529,0.00015999,2]
[420213066,1775785859657,-500.0,0.00015999,2]
[420213067,1775785859665,-500.0,0.00015999,2]
[420213068,1775785859681,-505.78009207,0.00015999,2]
[420213069,1775785859691,-222.85935308,0.00015999,2]
[420213070,1775785859706,-16026.6875183,0.00016,2]
[420213071,1775785861293,-151.0,0.00015803,2]
[420213072,1775785861306,-272.962661,0.000159,2]
[420213073,1775785861317,-5054.66036883,0.00016,2]
[420213088,1775786620255,27000.0,0.000161,120]
[420213095,1775787031649,-179.03,0.00011338,2]
[420213096,1775787031666,-161.14871702,0.000129,2]
[420213097,1775787031681,-1200.0,0.00012998,2]
[420213098,1775787031691,-29449.15856845,0.00012999,2]
[420213099,1775787031704,-250.0,0.00013,2]
[420213100,1775787031722,-1773.30254582,0.0001305,2]
[420213101,1775787031735,-506.0,0.000131,2]
[420213102,1775787031761,-166.66,0.00013998,2]
[420213103,1775787031781,-1025.55,0.00014163,2]
[420213104,1775787031797,-150.0,0.00014246,2]
[420213105,1775787031812,-166.66,0.00014292,2]
[420213106,1775787031825,-150.0,0.00014298,2]
[420213107,1775787031847,-4591.3155,0.00014368,2]
[420213108,1775787031859,-36851.2845,0.00014368,2]
[420213109,1775787031869,-250.97492584,0.00014439,2]
[420213110,1775787031881,-151.0,0.00014465,2]
[420213111,1775787031891,-6616.04272654,0.00014467,2]
[420213112,1775787031909,-67280.4345,0.00014468,2]
[420213113,1775787031919,-1600.0,0.00014511,2]
[420213114,1775787031928,-506.0,0.00014587,3]
[420213115,1775787031943,-166.66,0.00014587,2]
[420213116,1775787031952,-713.0,0.00014601,2]
[420213117,1775787031967,-986.78,0.00014623,2]
[420213118,1775787031977,-1107.22,0.00014623,2]
[420213120,1775787031987,-166.66,0.00014882,2]
[420213121,1775787032001,-200.0,0.00014886,2]
[420213122,1775787032012,-1644.32777297,0.00014961,2]
[420213123,1775787032024,-496.62937357,0.00014961,2]
[420213124,1775787032032,-517.35800484,0.00014961,2]
[420213125,1775787032042,-601.3376128,0.00014961,2]
[420213126,1775787032057,-398.48681652,0.00014961,2]
[420213127,1775787032071,-190.01700534,0.00014961,2]
[420213128,1775787032080,-198.1841228,0.00014961,2]
[420213129,1775787032090,-155.20147512,0.00014961,2]
[420213130,1775787032112,-156.03859337,0.00014961,2]
[420213131,1775787032121,-168.84452486,0.00014961,2]
[420213132,1775787032131,-648.87370481,0.00014961,2]
[420213133,1775787032163,-312.07484487,0.00014961,2]
[420213134,1775787032179,-300.0,0.00015,2]
[420213135,1775787032190,-761.33,0.00015,2]
[420213136,1775787032203,-2488.7185,0.00015022,2]
[420213137,1775787032216,-601.0,0.00015044,2]
[420213138,1775787032227,-3240.0,0.00015047,2]
[420213139,1775787032238,-1918.0,0.00015068,2]
[420213140,1775787032252,-1650.257923,0.00015076,2]
[420213141,1775787032267,-23024.57694066,0.00015122,2]
[420213142,1775787032280,-1650.25792295,0.00015168,2]
[420213143,1775787032293,-166.66,0.00015176,2]
[420213144,1775787032307,-459.0,0.00015211,2]
[420213145,1775787032323,-1650.25792295,0.00015259,2]
[420213146,1775787032355,-503.43108761,0.00015259,2]
[420213147,1775787032368,-601.0,0.00015264,2]
[420213148,1775787032401,-5286.69672,0.00015295,2]
[420213149,1775787032415,-195.85023268,0.00015298,2]
[420213150,1775787032454,-1650.25792295,0.00015351,2]
[420213151,1775787032485,-986.78,0.00015355,2]
[420213152,1775787032500,-459.0,0.0001538,2]
[420213153,1775787032514,-459.0,0.00015382,2]
[420213154,1775787032524,-1704.6719,0.00015405,2]
[420213155,1775787032534,-1000.0,0.00015405,2]
[420213156,1775787032551,-151.0,0.00015412,2]
[420213157,1775787032563,-5888.0,0.00015415,2]
[420213158,1775787032573,-1650.25792295,0.00015442,2]
[420213159,1775787032583,-2500.0,0.00015457,2]
[420213160,1775787032596,-166.66,0.00015471,2]
[420213161,1775787032609,-500.0,0.00015479,2]
[420213162,1775787032619,-459.0,0.00015482,2]
[420213163,1775787032629,-629.98003059,0.00015499,2]
[420213164,1775787032643,-150.0,0.000155,2]
[420213165,1775787032654,-914.78159459,0.000155,3]
[420213166,1775787032665,-348.29,0.000155,7]
[420213167,1775787032682,-189.78605208,0.000155,2]
[420213168,1775787032695,-561.46006383,0.000155,2]
[420213169,1775787032706,-400.0,0.00015505,7]
[420213170,1775787032722,-298.87,0.00015505,7]
[420213171,1775787032739,-4000.0,0.00015507,2]
[420213172,1775787032748,-400.0,0.0001551,7]
[420213173,1775787032764,-209.52,0.00015513,30]
[420213174,1775787032778,-383.67,0.00015517,30]
[420213175,1775787032790,-1650.25792295,0.00015534,2]
[420213176,1775787032799,-189.78605204,0.00015544,2]
[420213177,1775787032809,-561.4600638,0.00015557,2]
[420213178,1775787032826,-184.309621,0.00015582,7]
[420213179,1775787032835,-416.331424,0.00015582,7]
[420213180,1775787032845,-204.071805,0.00015582,7]
[420213181,1775787032858,-189.78605204,0.00015589,2]
[420213182,1775787032870,-500.0,0.00015599,2]
[420213183,1775787032880,-500.0,0.00015599,2]
[420213184,1775787032893,-403.99743812,0.00015599,2]
[420213185,1775787032903,-383.73859317,0.00015599,2]
[420213186,1775787032913,-500.0,0.00015599,2]
[420213187,1775787032927,-500.0,0.00015599,2]
[420213188,1775787032944,-500.0,0.00015599,2]
[420213189,1775787032954,-500.0,0.00015599,2]
[420213190,1775787032966,-500.0,0.00015599,2]
[420213191,1775787032981,-350.0,0.00015599,2]
[420213192,1775787032993,-500.0,0.00015599,2]
[420213193,1775787033003,-500.0,0.00015599,2]
[420213194,1775787033014,-500.0,0.00015599,2]
[420213195,1775787033026,-498.47021993,0.00015599,2]
[420213196,1775787033036,-500.0,0.00015599,2]
[420213197,1775787033046,-156406.22025715,0.000156,2]
[420213198,1775787033057,-212.29694503,0.000156,2]
[420213199,1775787033071,-561.4600638,0.00015614,2]
[420213200,1775787033081,-1650.25792295,0.00015625,2]
[420213201,1775787033095,-189.78605204,0.00015633,2]
[420213202,1775787033106,-561.4600638,0.00015671,2]
[420213203,1775787033116,-189.78605204,0.00015678,2]
[420213204,1775787033133,-163.262898,0.0001568,7]
[420213205,1775787033144,-160.0,0.0001568,7]
[420213206,1775787033159,-191.2647,0.0001568,7]
[420213207,1775787033172,-222.529401,0.0001568,7]
[420213208,1775787033183,-199.316789,0.0001568,7]
[420213209,1775787033197,-160.0,0.0001568,2]
[420213210,1775787033210,-557.845255,0.0001568,2]
[420213211,1775787033233,-955.690511,0.0001568,2]
[420213212,1775787033252,-1650.25792295,0.00015717,2]
[420213213,1775787033271,-189.78605204,0.00015722,2]
[420213214,1775787033281,-561.4600638,0.00015729,2]
[420213215,1775787033302,-351.9883292,0.00015759,2]
[420213216,1775787033319,-189.78605204,0.00015767,2]
[420213217,1775787033329,-561.4600638,0.00015786,2]
[420213218,1775787033352,-1650.25792295,0.00015808,2]
[420213219,1775787033372,-189.78605204,0.00015811,2]
[420213220,1775787033392,-500.0,0.00015822,2]
[420213221,1775787033410,-200.0,0.00015822,2]
[420213222,1775787033432,-2000.0,0.0001584,2]
[420213223,1775787033448,-2000.0,0.0001584,2]
[420213224,1775787033472,-561.4600638,0.00015843,2]
[420213225,1775787033483,-2000.0,0.0001585,2]
[420213226,1775787033492,-189.78605204,0.00015856,2]
[420213227,1775787033503,-1843.115,0.00015862,2]
[420213228,1775787033538,-188.874,0.00015862,2]
[420213229,1775787033548,-459.0,0.00015866,2]
[420213230,1775787033574,-2000.0,0.0001589,2]
[420213231,1775787033585,-500.0,0.00015893,2]
[420213232,1775787033619,-500.0,0.00015893,2]
[420213233,1775787033634,-500.0,0.00015893,2]
[420213234,1775787033680,-3525.0,0.00015894,2]
[420213235,1775787033693,-1347.0,0.00015894,2]
[420213236,1775787033709,-1047.0,0.00015894,2]
[420213237,1775787033723,-1264.0,0.00015894,2]
[420213238,1775787033751,-926.0,0.00015894,2]
[420213239,1775787033760,-1218.0,0.00015894,2]
[420213240,1775787033788,-3773.0,0.00015894,2]
[420213241,1775787033809,-2471.0,0.00015894,2]
[420213242,1775787033819,-4000.0,0.00015895,2]
[420213243,1775787033835,-21290.97079583,0.000159,3]
[420213244,1775787033850,-783.82774358,0.000159,2]
[420213245,1775787033876,-5000.0,0.000159,2]
[420213246,1775787033886,-189.78605204,0.000159,2]
[420213247,1775787033911,-1650.25792295,0.000159,2]
[420213248,1775787033920,-561.4600638,0.000159,2]
[420213249,1775787033933,-12693.28311888,0.000159,2]
[420213250,1775787033954,-250.0,0.00015929,2]
[420213251,1775787033979,-459.0,0.00015953,2]
[420213252,1775787033991,-188.0,0.00015973,2]
[420213253,1775787034001,-502.04743708,0.00015973,2]
[420213254,1775787034022,-500.0,0.00015973,2]
[420213255,1775787034032,-503.91959101,0.00015973,2]
[420213256,1775787034041,-264.7192015,0.00015973,2]
[420213257,1775787034051,-505.43266647,0.00015973,2]
[420213258,1775787034063,-500.0,0.00015973,2]
[420213259,1775787034073,-500.0,0.00015973,2]
[420213260,1775787034082,-500.0,0.00015973,2]
[420213261,1775787034093,-306.9536661,0.00015973,2]
[420213262,1775787034103,-159.66639446,0.00015984,2]
[420213263,1775787034115,-216.2250904,0.00015984,2]
[420213264,1775787034131,-2335.02735049,0.00015989,8]
[420213265,1775787034140,-459.0,0.00015993,2]
[420213266,1775787034150,-154.30067527,0.00015997,2]
[420213267,1775787034161,-3727.2180586,0.00015998,2]
[420213268,1775787034177,-40411.8826134,0.00015998,2]
[420213269,1775787034187,-151.0,0.00015998,2]
[420213270,1775787034202,-151.0,0.00015998,2]
[420213271,1775787034213,-151.0,0.00015998,2]
[420213272,1775787034228,-151.0,0.00015998,2]
[420213273,1775787034239,-215.912722,0.00015998,2]
[420213274,1775787034259,-215.912722,0.00015998,2]
[420213275,1775787034269,-215.912722,0.00015998,2]
[420213276,1775787034288,-215.912722,0.00015998,2]
[420213277,1775787034301,-166.770294,0.00015998,2]
[420213278,1775787034336,-151.0,0.00015998,2]
[420213279,1775787034361,-151.0,0.00015998,2]
[420213280,1775787034386,-151.0,0.00015998,2]
[420213281,1775787034456,-151.0,0.00015998,2]
[420213282,1775787034480,-151.0,0.00015998,2]
[420213283,1775787034496,-331.224618,0.00015998,2]
[420213284,1775787034534,-151.0,0.00015998,2]
[420213285,1775787034547,-331.224618,0.00015998,2]
[420213286,1775787034572,-151.0,0.00015998,2]
[420213287,1775787034587,-331.224618,0.00015998,2]
[420213288,1775787034603,-151.0,0.00015998,2]
[420213289,1775787034631,-331.224618,0.00015998,2]
[420213290,1775787034669,-151.0,0.00015998,2]
[420213291,1775787034682,-174.260126,0.00015998,2]
[420213292,1775787034692,-174.260126,0.00015998,2]
[420213293,1775787034703,-174.260126,0.00015998,2]
[420213294,1775787034718,-174.260126,0.00015998,2]
[420213295,1775787034732,-151.0,0.00015998,2]
[420213296,1775787034744,-151.0,0.00015998,2]
[420213297,1775787034756,-151.0,0.00015998,2]
[420213298,1775787034770,-151.0,0.00015998,2]
[420213299,1775787034785,-151.0,0.00015998,2]
[420213300,1775787034798,-151.0,0.00015998,2]
[420213301,1775787034825,-151.0,0.00015998,2]
[420213302,1775787034834,-151.0,0.00015998,2]
[420213303,1775787034864,-151.0,0.00015998,2]
[420213304,1775787034880,-151.0,0.00015998,2]
[420213305,1775787034901,-300.362834,0.00015998,2]
[420213306,1775787034912,-151.0,0.00015998,2]
[420213307,1775787034966,-163.340069,0.00015998,2]
[420213308,1775787035002,-300.362834,0.00015998,2]
[420213309,1775787035013,-300.362834,0.00015998,2]
[420213310,1775787035046,-184.215327,0.00015998,2]
[420213311,1775787035058,-151.0,0.00015998,2]
[420213312,1775787035086,-300.362834,0.00015998,2]
[420213313,1775787035102,-151.0,0.00015998,2]
[420213314,1775787035122,-184.215327,0.00015998,2]
[420213315,1775787035139,-184.215327,0.00015998,2]
[420213316,1775787035162,-184.215327,0.00015998,2]
[420213317,1775787035177,-151.0,0.00015998,2]
[420213318,1775787035188,-151.0,0.00015998,2]
[420213319,1775787035207,-151.0,0.00015998,2]
[420213320,1775787035219,-151.0,0.00015998,2]
[420213321,1775787035236,-151.0,0.00015998,2]
[420213322,1775787035252,-151.0,0.00015998,2]
[420213323,1775787035262,-151.0,0.00015998,2]
[420213324,1775787035284,-151.0,0.00015998,2]
[420213325,1775787035296,-249.076647,0.00015998,2]
[420213326,1775787035324,-167.672476,0.00015998,2]
[420213327,1775787035335,-249.076647,0.00015998,2]
[420213328,1775787035349,-151.0,0.00015998,2]
[420213329,1775787035367,-151.0,0.00015998,2]
[420213330,1775787035379,-151.0,0.00015998,2]
[420213331,1775787035389,-151.0,0.00015998,2]
[420213332,1775787035403,-151.0,0.00015998,2]
[420213333,1775787035418,-225.20439,0.00015998,2]
[420213334,1775787035771,-151.0,0.00015998,2]
[420213335,1775787035799,-151.0,0.00015998,2]
[420213336,1775787035808,-151.0,0.00015998,2]
[420213337,1775787035823,-151.0,0.00015998,2]
[420213338,1775787035833,-151.0,0.00015998,2]
[420213339,1775787035843,-249.076647,0.00015998,2]
[420213340,1775787035853,-172.235219,0.00015998,2]
[420213341,1775787035863,-242.071543,0.00015998,2]
[420213342,1775787035873,-151.0,0.00015998,2]
[420213343,1775787035882,-151.0,0.00015998,2]
[420213344,1775787035892,-151.0,0.00015998,2]
[420213345,1775787035905,-179.642216,0.00015998,2]
[420213346,1775787035914,-249.076647,0.00015998,2]
[420213347,1775787035924,-242.071543,0.00015998,2]
[420213348,1775787035936,-242.071543,0.00015998,2]
[420213349,1775787035946,-242.071543,0.00015998,2]
[420213350,1775787035955,-151.0,0.00015998,2]
[420213351,1775787035965,-151.0,0.00015998,2]
[420213352,1775787035978,-151.0,0.00015998,2]
[420213353,1775787035991,-151.0,0.00015998,2]
[420213354,1775787036000,-151.0,0.00015998,2]
[420213355,1775787036010,-151.0,0.00015998,2]
[420213356,1775787036024,-151.0,0.00015998,2]
[420213357,1775787036033,-151.0,0.00015998,2]
[420213358,1775787036045,-151.0,0.00015998,2]
[420213359,1775787036064,-151.0,0.00015998,2]
[420213360,1775787036073,-151.0,0.00015998,2]
[420213361,1775787036088,-151.0,0.00015998,2]
[420213362,1775787036097,-165.50904,0.00015998,2]
[420213363,1775787036107,-265.891245,0.00015998,2]
[420213364,1775787036120,-165.50904,0.00015998,2]
[420213365,1775787036133,-165.50904,0.00015998,2]
[420213366,1775787036151,-4764.5961336,0.00015998,2]
[420213367,1775787036164,-165.50904,0.00015998,2]